fUST/lending_fUST_20250717
["ID","MTS","AMOUNT","RATE_DAILY","PERIOD"]
[372556747,1752682270798,-460.0,0.00020547,2]
[372556748,1752682270808,-460.0,0.00020547,2]
[372556749,1752682270818,-664.71,0.00020547,2]
[372556750,1752682270828,-460.0,0.00020547,2]
[372556751,1752682270838,-460.0,0.00020547,2]
[372556752,1752682270848,-460.0,0.00020547,2]
[372556753,1752682270858,-460.0,0.00020547,2]
[372556754,1752682270867,-460.0,0.00020547,2]
[372556755,1752682270877,-460.0,0.00020547,2]
[372556756,1752682270887,-460.0,0.00020547,2]
[372556757,1752682270896,-569.95,0.00020547,2]
[372556758,1752682270906,-460.0,0.00020547,2]
[372556759,1752682270916,-460.0,0.00020547,2]
[372556760,1752682270926,-460.0,0.00020547,2]
[372556761,1752682270936,-463.75668499,0.00020547,2]
[372556762,1752682270946,-460.0,0.00020547,2]
[372556763,1752682270956,-460.0,0.00020547,2]
[372556764,1752682270965,-712.27,0.00020547,2]
[372556765,1752682270975,-2013.52,0.00020547,2]
[372556766,1752682270985,-952.9,0.00020547,2]
[372556767,1752682270995,-3683.85,0.00020547,2]
[372556768,1752682271004,-460.0,0.00020547,2]
[372556769,1752682271014,-1497.64,0.00020547,2]
[372556770,1752682271024,-460.0,0.00020547,2]
[372556771,1752682271035,-460.0,0.00020547,2]
[372556772,1752682271045,-460.0,0.00020547,2]
[372556773,1752682271055,-619.97,0.00020547,2]
[372556774,1752682271065,-585.24,0.00020547,2]
[372556775,1752682271074,-463.3606998,0.00020547,2]
[372556776,1752682271084,-777.46,0.00020547,2]
[372556777,1752682271093,-460.0,0.00020547,2]
[372556778,1752682271103,-467.41459426,0.00020547,2]
[372556779,1752682271112,-467.57407058,0.00020547,2]
[372556780,1752682271122,-460.0,0.00020547,2]
[372556781,1752682271131,-1172.05,0.00020547,2]
[372556782,1752682271141,-1533.49,0.00020547,2]
[372556783,1752682271151,-460.0,0.00020547,2]
[372556784,1752682271161,-460.0,0.00020547,2]
[372556785,1752682271171,-3198.06,0.00020547,2]
[372556786,1752682271182,-9374.46,0.00020547,2]
[372556787,1752682271192,-460.0,0.00020547,2]
[372556788,1752682271202,-473.24193878,0.00020547,2]
[372556789,1752682271211,-460.0,0.00020547,2]
[372556790,1752682271221,-460.0,0.00020547,2]
[372556791,1752682271232,-460.0,0.00020547,2]
[372556792,1752682271242,-512.38,0.00020547,2]
[372556793,1752682271252,-460.0,0.00020547,2]
[372556794,1752682271262,-605.37,0.00020547,2]
[372556795,1752682271272,-460.0,0.00020547,2]
[372556796,1752682271283,-460.0,0.00020547,2]
[372556797,1752682271294,-460.0,0.00020547,2]
[372556798,1752682271304,-460.0,0.00020547,2]
[372556799,1752682271313,-460.0,0.00020547,2]
[372556800,1752682271323,-460.0,0.00020547,2]
[372556801,1752682271333,-838.16,0.00020547,2]
[372556802,1752682271345,-460.0,0.00020547,2]
[372556803,1752682271356,-2434.41,0.00020547,2]
[372556804,1752682271367,-5102.38,0.00020547,2]
[372556805,1752682271377,-602.13,0.00020547,2]
[372556806,1752682271387,-460.0,0.00020547,2]
[372556807,1752682271397,-460.0,0.00020547,2]
[372556808,1752682271407,-460.0,0.00020547,2]
[372556809,1752682271417,-460.0,0.00020547,2]
[372556810,1752682271511,-460.0,0.00020547,2]
[372556811,1752682271522,-1404.59,0.00020547,2]
[372556812,1752682271534,-460.0,0.00020547,2]
[372556813,1752682271544,-460.0,0.00020547,2]
[372556814,1752682271554,-460.0,0.00020547,2]
[372556815,1752682271565,-460.0,0.00020547,2]
[372556816,1752682271577,-499.74,0.00020547,2]
[372556817,1752682271587,-460.0,0.00020547,2]
[372556818,1752682271597,-1737.0,0.00020547,2]
[372556819,1752682271607,-320.46637364,0.00020547,2]
[372556820,1752682271616,-8485.34,0.00020547,2]
[372556821,1752682271626,-460.0,0.00020547,2]
[372556822,1752682271636,-460.0,0.00020547,2]
[372556823,1752682271645,-460.0,0.00020547,2]
[372556824,1752682271655,-460.0,0.00020547,2]
[372556825,1752682271664,-1068.7,0.00020547,2]
[372556826,1752682271674,-460.0,0.00020547,2]
[372556827,1752682271684,-460.0,0.00020547,2]
[372556828,1752682271693,-1077.39,0.00020547,2]
[372556829,1752682271703,-460.0,0.00020547,2]
[372556830,1752682271713,-461.69,0.00020547,2]
[372556831,1752682271722,-463.98893947,0.00020547,2]
[372556832,1752682271732,-715.65,0.00020547,2]
[372556833,1752682271741,-957.64,0.00020547,2]
[372556834,1752682271751,-460.0,0.00020547,2]
[372556835,1752682271762,-460.0,0.00020547,2]
[372556836,1752682271771,-460.0,0.00020547,2]
[372556837,1752682271783,-460.0,0.00020547,2]
[372556838,1752682271793,-460.0,0.00020547,2]
[372556839,1752682271803,-460.0,0.00020547,2]
[372556840,1752682271812,-460.0,0.00020547,2]
[372556841,1752682271821,-460.0,0.00020547,2]
[372556842,1752682271831,-1115.86,0.00020547,2]
[372556843,1752682271841,-523.69,0.00020547,2]
[372556844,1752682271851,-4066.52,0.00020547,2]
[372556845,1752682271861,-619.31,0.00020547,2]
[372556846,1752682271871,-464.03122356,0.00020547,2]
[372556847,1752682271880,-574.27,0.00020547,2]
[372556848,1752682271889,-460.0,0.00020547,2]
[372556849,1752682271899,-460.0,0.00020547,2]
[372556850,1752682271909,-1328.1,0.00020547,2]
[372556851,1752682271919,-918.72,0.00020547,2]
[372556852,1752682271929,-2299.85,0.00020547,2]
[372556853,1752682271938,-460.0,0.00020547,2]
[372556854,1752682271948,-460.0,0.00020547,2]
[372556855,1752682271958,-773.05,0.00020547,2]
[372556856,1752682271968,-285.2265671,0.00020547,2]
[372556857,1752682271977,-463.28953451,0.00020547,2]
[372556858,1752682271987,-4580.98,0.00020547,2]
[372556859,1752682271997,-460.0,0.00020547,2]
[372556860,1752682272007,-755.59,0.00020547,2]
[372556861,1752682272018,-460.0,0.00020547,2]
[372556862,1752682272028,-913.1,0.00020547,2]
[372556863,1752682272038,-460.0,0.00020547,2]
[372556864,1752682272048,-460.0,0.00020547,2]
[372556865,1752682272058,-810.6,0.00020547,2]
[372556866,1752682272068,-985.68,0.00020547,2]
[372556867,1752682272077,-460.0,0.00020547,2]
[372556868,1752682272087,-1927.53,0.00020547,2]
[372556869,1752682272097,-460.0,0.00020547,2]
[372556870,1752682272107,-460.0,0.00020547,2]
[372556871,1752682272117,-460.0,0.00020547,2]
[372556872,1752682272127,-477.77,0.00020547,2]
[372556873,1752682272137,-460.0,0.00020547,2]
[372556874,1752682272148,-2098.91,0.00020547,2]
[372556875,1752682272157,-460.0,0.00020547,2]
[372556876,1752682272167,-460.0,0.00020547,2]
[372556877,1752682272176,-850.69,0.00020547,2]
[372556878,1752682272186,-460.0,0.00020547,2]
[372556879,1752682272196,-3246.09,0.00020547,2]
[372556880,1752682272207,-460.0,0.00020547,2]
[372556881,1752682272217,-460.0,0.00020547,2]
[372556882,1752682272226,-460.0,0.00020547,2]
[372556883,1752682272236,-496.33,0.00020547,2]
[372556884,1752682272246,-460.0,0.00020547,2]
[372556885,1752682272256,-4054.42,0.00020547,2]
[372556886,1752682272266,-1129.6,0.00020547,2]
[372556887,1752682272276,-460.0,0.00020547,2]
[372556888,1752682272288,-460.0,0.00020547,2]
[372556889,1752682272298,-460.0,0.00020547,2]
[372556890,1752682272308,-460.0,0.00020547,2]
[372556891,1752682272317,-539.16347425,0.00020568,2]
[372556892,1752682272327,-1500.0,0.00020568,2]
[372556893,1752682272338,-1500.0,0.00020568,2]
[372556894,1752682272351,-1500.0,0.00020568,2]
[372556895,1752682272362,-471.88357901,0.00020568,2]
[372556896,1752682272372,-1285.68184615,0.00020568,2]
[372556897,1752682272383,-502.05230753,0.00020568,2]
[372556898,1752682272392,-1500.0,0.00020568,2]
[372556899,1752682272402,-1001.15244388,0.00020568,2]
[372556900,1752682272412,-1500.0,0.00020568,2]
[372556901,1752682272422,-321.62587952,0.00020568,2]
[372556902,1752682272431,-1500.0,0.00020568,2]
[372556903,1752682272441,-1500.0,0.00020568,2]
[372556904,1752682272451,-1500.0,0.00020568,2]
[372556905,1752682272461,-1500.0,0.00020568,2]
[372556906,1752682272470,-663.88850631,0.00020568,2]
[372556907,1752682272480,-7562.15499518,0.0002059,3]
[372556908,1752682272490,-414.25658974,0.00020821,2]
[372556909,1752682272499,-460.0,0.00020821,2]
[372556910,1752682272509,-460.0,0.00020821,2]
[372556911,1752682272518,-460.0,0.00020821,2]
[372556912,1752682272529,-460.0,0.00020821,2]
[372556913,1752682272539,-460.0,0.00020821,2]
[372556914,1752682272548,-460.0,0.00020821,2]
[372556915,1752682272559,-460.0,0.00020821,2]
[372556916,1752682272568,-555.83,0.00020821,2]
[372556917,1752682272578,-460.0,0.00020821,2]
[372556918,1752682272588,-463.47977592,0.00020821,2]
[372556919,1752682272598,-460.0,0.00020821,2]
[372556920,1752682272611,-460.0,0.00020821,2]
[372556921,1752682272620,-460.0,0.00020821,2]
[372556922,1752682272630,-460.0,0.00020821,2]
[372556923,1752682272640,-460.0,0.00020821,2]
[372556924,1752682272650,-460.0,0.00020821,2]
[372556925,1752682272660,-774.56,0.00020821,2]
[372556926,1752682272670,-460.0,0.00020821,2]
[372556927,1752682272680,-537.73,0.00020821,2]
[372556928,1752682272689,-460.0,0.00020821,2]
[372556929,1752682272700,-460.0,0.00020821,2]
[372556930,1752682272710,-460.0,0.00020821,2]
[372556931,1752682272719,-231.0427948,0.00020821,2]
[372556932,1752682272730,-460.0,0.00020821,2]
[372556933,1752682272740,-460.0,0.00020821,2]
[372556934,1752682272750,-508.47,0.00020821,2]
[372556935,1752682272760,-460.0,0.00020821,2]
[372556936,1752682272770,-460.0,0.00020821,2]
[372556937,1752682272780,-462.87,0.00020821,2]
[372556938,1752682272790,-460.0,0.00020821,2]
[372556939,1752682272800,-460.0,0.00020821,2]
[372556940,1752682272810,-460.0,0.00020821,2]
[372556941,1752682272819,-517.29962209,0.00020821,2]
[372556942,1752682272829,-460.0,0.00020821,2]
[372556943,1752682272838,-462.53552571,0.00020821,2]
[372556944,1752682272848,-460.0,0.00020821,2]
[372556945,1752682272858,-460.0,0.00020821,2]
[372556946,1752682272868,-460.0,0.00020821,2]
[372556947,1752682272878,-568.26880508,0.00020821,2]
[372556948,1752682272888,-512.75,0.00020821,2]
[372556949,1752682272898,-460.0,0.00020821,2]
[372556950,1752682272908,-280.26589528,0.00020821,2]
[372556951,1752682272918,-460.0,0.00020821,2]
[372556952,1752682272927,-800.36,0.00020821,2]
[372556953,1752682272937,-460.0,0.00020821,2]
[372556954,1752682272946,-705.11,0.00020821,2]
[372556955,1752682272955,-460.0,0.00020821,2]
[372556956,1752682272964,-460.0,0.00020821,2]
[372556957,1752682272974,-895.39,0.00020821,2]
[372556958,1752682272983,-460.0,0.00020821,2]
[372556959,1752682272994,-460.0,0.00020821,2]
[372556960,1752682273004,-460.0,0.00020821,2]
[372556961,1752682273014,-749.62,0.00020821,2]
[372556962,1752682273024,-460.0,0.00020821,2]
[372556963,1752682273037,-460.0,0.00020821,2]
[372556964,1752682273047,-460.0,0.00020821,2]
[372556965,1752682273057,-460.0,0.00020821,2]
[372556966,1752682273067,-460.0,0.00020821,2]
[372556967,1752682273078,-468.89057623,0.00020821,2]
[372556968,1752682273088,-460.0,0.00020821,2]
[372556969,1752682273098,-460.0,0.00020821,2]
[372556970,1752682273108,-465.07077503,0.00020821,2]
[372556971,1752682273117,-1006.97,0.00020821,2]
[372556972,1752682273127,-460.0,0.00020821,2]
[372556973,1752682273137,-460.0,0.00020821,2]
[372556974,1752682273147,-582.75,0.00020821,2]
[372556975,1752682273157,-460.0,0.00020821,2]
[372556976,1752682273167,-460.0,0.00020821,2]
[372556977,1752682273177,-460.0,0.00020821,2]
[372556978,1752682273187,-1201.4,0.00020821,2]
[372556979,1752682273196,-460.0,0.00020821,2]
[372556980,1752682273206,-451.50982227,0.00020821,2]
[372556981,1752682273216,-1474.43,0.00020821,2]
[372556982,1752682273226,-460.0,0.00020821,2]
[372556983,1752682273236,-460.0,0.00020821,2]
[372556984,1752682273246,-828.54,0.00020821,2]
[372556985,1752682273256,-460.0,0.00020821,2]
[372556986,1752682273267,-460.0,0.00020821,2]
[372556987,1752682273277,-460.0,0.00020821,2]
[372556988,1752682273290,-460.0,0.00020821,2]
[372556989,1752682273301,-460.0,0.00020821,2]
[372556990,1752682273311,-507.41,0.00020821,2]
[372556991,1752682273332,-463.46190112,0.00020821,2]
[372556992,1752682273352,-632.11,0.00020821,2]
[372556993,1752682273371,-460.0,0.00020821,2]
[372556994,1752682273392,-460.0,0.00020821,2]
[372556995,1752682273412,-460.0,0.00020821,2]
[372556996,1752682273433,-460.0,0.00020821,2]
[372556997,1752682273452,-1356.45,0.00020821,2]
[372556998,1752682273479,-460.0,0.00020821,2]
[372556999,1752682273500,-460.0,0.00020821,2]
[372557000,1752682273522,-761.93,0.00020821,2]
[372557001,1752682273533,-460.0,0.00020821,2]
[372557002,1752682273543,-460.0,0.00020821,2]
[372557003,1752682273554,-600.35,0.00020821,2]
[372557004,1752682273564,-949.14,0.00020821,2]
[372557005,1752682273574,-624.22,0.00020821,2]
[372557006,1752682273584,-1370.55,0.00020821,2]
[372557007,1752682273594,-1009.28,0.00020821,2]
[372557008,1752682273604,-460.0,0.00020821,2]
[372557009,1752682273615,-460.0,0.00020821,2]
[372557010,1752682273625,-590.9613605,0.00020821,2]
[372557011,1752682273635,-460.0,0.00020821,2]
[372557012,1752682273645,-664.71,0.00020821,2]
[372557013,1752682273655,-460.0,0.00020821,2]
[372557014,1752682273665,-460.0,0.00020821,2]
[372557015,1752682273674,-460.0,0.00020821,2]
[372557016,1752682273684,-460.0,0.00020821,2]
[372557017,1752682273694,-460.0,0.00020821,2]
[372557018,1752682273705,-264.51244642,0.00020821,2]
[372557019,1752682273716,-569.95,0.00020821,2]
[372557020,1752682273726,-460.0,0.00020821,2]
[372557021,1752682273738,-460.0,0.00020821,2]
[372557022,1752682273846,-257.7928279,0.00020821,2]
[372557023,1752682273857,-460.0,0.00020821,2]
[372557024,1752682273867,-460.0,0.00020821,2]
[372557025,1752682273877,-712.27,0.00020821,2]
[372557026,1752682273886,-2013.52,0.00020821,2]
[372557027,1752682273896,-952.9,0.00020821,2]
[372557028,1752682273906,-3683.85,0.00020821,2]
[372557029,1752682273916,-460.0,0.00020821,2]
[372557030,1752682273926,-1497.64,0.00020821,2]
[372557031,1752682273935,-460.0,0.00020821,2]
[372557032,1752682273946,-460.0,0.00020821,2]
[372557033,1752682273964,-460.0,0.00020821,2]
[372557034,1752682273974,-619.97,0.00020821,2]
[372557035,1752682273984,-585.24,0.00020821,2]
[372557036,1752682273994,-777.46,0.00020821,2]
[372557037,1752682274005,-460.0,0.00020821,2]
[372557038,1752682274015,-460.0,0.00020821,2]
[372557039,1752682274025,-1172.05,0.00020821,2]
[372557040,1752682274038,-1533.49,0.00020821,2]
[372557041,1752682274047,-460.0,0.00020821,2]
[372557042,1752682274066,-3198.06,0.00020821,2]
[372557043,1752682274084,-9374.46,0.00020821,2]
[372557044,1752682274095,-460.0,0.00020821,2]
[372557045,1752682274105,-460.0,0.00020821,2]
[372557046,1752682274115,-460.0,0.00020821,2]
[372557047,1752682274124,-512.38,0.00020821,2]
[372557048,1752682274135,-460.0,0.00020821,2]
[372557049,1752682274145,-605.37,0.00020821,2]
[372557050,1752682274155,-460.0,0.00020821,2]
[372557051,1752682274165,-460.0,0.00020821,2]
[372557052,1752682274175,-460.0,0.00020821,2]
[372557053,1752682274185,-460.0,0.00020821,2]
[372557054,1752682274195,-460.0,0.00020821,2]
[372557055,1752682274205,-460.0,0.00020821,2]
[372557056,1752682274215,-460.0,0.00020821,2]
[372557057,1752682274226,-838.16,0.00020821,2]
[372557058,1752682274236,-2434.41,0.00020821,2]
[372557059,1752682274246,-5102.38,0.00020821,2]
[372557060,1752682274256,-602.13,0.00020821,2]
[372557061,1752682274266,-460.0,0.00020821,2]
[372557062,1752682274276,-460.0,0.00020821,2]
[372557063,1752682274288,-460.0,0.00020821,2]
[372557064,1752682274298,-460.0,0.00020821,2]
[372557065,1752682274308,-1404.59,0.00020821,2]
[372557066,1752682274318,-460.0,0.00020821,2]
[372557067,1752682274328,-460.0,0.00020821,2]
[372557068,1752682274339,-460.0,0.00020821,2]
[372557069,1752682274358,-460.0,0.00020821,2]
[372557070,1752682274369,-460.0,0.00020821,2]
[372557071,1752682274378,-499.74,0.00020821,2]
[372557072,1752682274391,-460.0,0.00020821,2]
[372557073,1752682274401,-1737.0,0.00020821,2]
[372557074,1752682274411,-8485.34,0.00020821,2]
[372557075,1752682274424,-460.0,0.00020821,2]
[372557076,1752682274435,-460.0,0.00020821,2]
[372557077,1752682274446,-460.0,0.00020821,2]
[372557078,1752682274455,-1068.7,0.00020821,2]
[372557079,1752682274465,-460.0,0.00020821,2]
[372557080,1752682274474,-460.0,0.00020821,2]
[372557081,1752682274484,-1077.39,0.00020821,2]
[372557082,1752682274493,-460.0,0.00020821,2]
[372557083,1752682274503,-461.69,0.00020821,2]
[372557084,1752682274512,-715.65,0.00020821,2]
[372557085,1752682274522,-957.64,0.00020821,2]
[372557086,1752682274533,-460.0,0.00020821,2]
[372557087,1752682274542,-460.0,0.00020821,2]
[372557088,1752682274551,-460.0,0.00020821,2]
[372557089,1752682274560,-460.0,0.00020821,2]
[372557090,1752682274571,-460.0,0.00020821,2]
[372557091,1752682274581,-460.0,0.00020821,2]
[372557092,1752682274591,-460.0,0.00020821,2]
[372557093,1752682274602,-460.0,0.00020821,2]
[372557094,1752682274612,-1115.86,0.00020821,2]
[372557095,1752682274621,-523.69,0.00020821,2]
[372557096,1752682274631,-4066.52,0.00020821,2]
[372557097,1752682274641,-619.31,0.00020821,2]
[372557098,1752682274651,-574.27,0.00020821,2]
[372557099,1752682274661,-460.0,0.00020821,2]
[372557100,1752682274671,-460.0,0.00020821,2]
[372557101,1752682274681,-1328.1,0.00020821,2]
[372557102,1752682274691,-918.72,0.00020821,2]
[372557103,1752682274701,-2299.85,0.00020821,2]
[372557104,1752682274711,-460.0,0.00020821,2]
[372557105,1752682274721,-477.85,0.00020821,2]
[372557106,1752682274731,-773.05,0.00020821,2]
[372557107,1752682274741,-4580.98,0.00020821,2]
[372557108,1752682274751,-460.0,0.00020821,2]
[372557109,1752682274760,-755.59,0.00020821,2]
[372557110,1752682274770,-420.50965263,0.00020821,2]
[372557111,1752682274780,-913.1,0.00020821,2]
[372557112,1752682274789,-460.0,0.00020821,2]
[372557113,1752682274801,-460.0,0.00020821,2]
[372557114,1752682274810,-810.6,0.00020821,2]
[372557115,1752682274819,-985.68,0.00020821,2]
[372557116,1752682274829,-460.0,0.00020821,2]
[372557117,1752682274839,-1927.53,0.00020821,2]
[372557118,1752682274850,-460.0,0.00020821,2]
[372557119,1752682274860,-372.63348116,0.00020821,2]
[372557120,1752682274870,-460.0,0.00020821,2]
[372557121,1752682274880,-477.77,0.00020821,2]
[372557122,1752682274891,-460.0,0.00020821,2]
[372557123,1752682274901,-2098.91,0.00020821,2]
[372557124,1752682274911,-460.0,0.00020821,2]
[372557125,1752682274921,-850.69,0.00020821,2]
[372557126,1752682274931,-460.0,0.00020821,2]
[372557127,1752682274940,-3246.09,0.00020821,2]
[372557128,1752682274950,-460.0,0.00020821,2]
[372557129,1752682274959,-460.0,0.00020821,2]
[372557130,1752682274969,-460.0,0.00020821,2]
[372557131,1752682274979,-496.33,0.00020821,2]
[372557132,1752682274988,-460.0,0.00020821,2]
[372557133,1752682274998,-4054.42,0.00020821,2]
[372557134,1752682275008,-1129.6,0.00020821,2]
[372557135,1752682275018,-460.0,0.00020821,2]
[372557136,1752682275028,-460.0,0.00020821,2]
[372557137,1752682275039,-460.0,0.00020821,2]
[372557138,1752682275049,-460.0,0.00020821,2]
[372557139,1752682275060,-7562.15499518,0.00020831,4]
[372557140,1752682275070,-500.0,0.00020895,2]
[372557141,1752682275080,-1064.75133655,0.00020964,2]
[372557142,1752682275090,-360.0,0.00020985,2]
[372557143,1752682275100,-160.0,0.00020988,2]
[372557144,1752682275110,-160.0,0.00020988,2]
[372557145,1752682275119,-215.5496034,0.00020991,2]
[372557146,1752682275129,-12605.49131908,0.00020991,2]
[372557147,1752682275139,-230.8109288,0.00020991,2]
[372557148,1752682275148,-525.58295679,0.00020991,2]
[372557149,1752682275157,-214.40824756,0.00020991,2]
[372557150,1752682275167,-838.99048831,0.00020991,2]
[372557151,1752682275176,-160.0,0.00020991,2]
[372557152,1752682275186,-160.0,0.00020991,2]
[372557153,1752682275195,-476.07036022,0.00020999,2]
[372557154,1752682275205,-1371.842,0.00021033,2]
[372557155,1752682275215,-178.19617358,0.00021033,2]
[372557156,1752682275225,-577.12552098,0.00021068,2]
[372557157,1752682275235,-7562.15499518,0.00021072,4]
[372557158,1752682275245,-541.31869225,0.00021095,2]
[372557159,1752682275256,-460.0,0.00021095,2]
[372557160,1752682275266,-460.0,0.00021095,2]
[372557161,1752682275282,-460.0,0.00021095,2]
[372557162,1752682275293,-460.0,0.00021095,2]
[372557163,1752682275304,-460.0,0.00021095,2]
[372557164,1752682275315,-555.83,0.00021095,2]
[372557165,1752682275324,-460.0,0.00021095,2]
[372557166,1752682275333,-460.0,0.00021095,2]
[372557167,1752682275344,-295.11044533,0.00021095,2]
[372557168,1752682275357,-460.0,0.00021095,2]
[372557169,1752682275367,-460.0,0.00021095,2]
[372557170,1752682275376,-460.0,0.00021095,2]
[372557171,1752682275386,-774.56,0.00021095,2]
[372557172,1752682275397,-460.0,0.00021095,2]
[372557173,1752682275406,-537.73,0.00021095,2]
[372557174,1752682275416,-460.0,0.00021095,2]
[372557175,1752682275426,-460.0,0.00021095,2]
[372557176,1752682275435,-460.0,0.00021095,2]
[372557177,1752682275445,-460.0,0.00021095,2]
[372557178,1752682275455,-460.0,0.00021095,2]
[372557179,1752682275465,-508.47,0.00021095,2]
[372557180,1752682275474,-460.0,0.00021095,2]
[372557181,1752682275484,-460.0,0.00021095,2]
[372557182,1752682275493,-462.87,0.00021095,2]
[372557183,1752682275503,-460.0,0.00021095,2]
[372557184,1752682275513,-460.0,0.00021095,2]
[372557185,1752682275523,-460.0,0.00021095,2]
[372557186,1752682275534,-460.0,0.00021095,2]
[372557187,1752682275543,-460.0,0.00021095,2]
[372557188,1752682275553,-460.0,0.00021095,2]
[372557189,1752682275562,-512.75,0.00021095,2]
[372557190,1752682275571,-464.94878386,0.00021095,2]
[372557191,1752682275581,-460.0,0.00021095,2]
[372557192,1752682275591,-800.36,0.00021095,2]
[372557193,1752682275600,-460.0,0.00021095,2]
[372557194,1752682275610,-460.0,0.00021095,2]
[372557195,1752682275620,-460.0,0.00021095,2]
[372557196,1752682275630,-705.11,0.00021095,2]
[372557197,1752682275640,-895.39,0.00021095,2]
[372557198,1752682275649,-460.0,0.00021095,2]
[372557199,1752682275659,-460.0,0.00021095,2]
[372557200,1752682275669,-364.44,0.00021095,2]
[372557201,1752682275679,-749.62,0.00021095,2]
[372557202,1752682275689,-460.0,0.00021095,2]
[372557203,1752682275699,-460.0,0.00021095,2]
[372557204,1752682275708,-277.47721017,0.00021095,2]
[372557205,1752682275718,-460.0,0.00021095,2]
[372557206,1752682275728,-460.0,0.00021095,2]
[372557207,1752682275738,-460.0,0.00021095,2]
[372557208,1752682275747,-460.0,0.00021095,2]
[372557209,1752682275756,-1006.97,0.00021095,2]
[372557210,1752682275766,-460.0,0.00021095,2]
[372557211,1752682275776,-460.0,0.00021095,2]
[372557212,1752682275787,-582.75,0.00021095,2]
[372557213,1752682275796,-460.0,0.00021095,2]
[372557214,1752682275806,-460.0,0.00021095,2]
[372557215,1752682275815,-460.0,0.00021095,2]
[372557216,1752682275825,-1201.4,0.00021095,2]
[372557217,1752682275835,-460.0,0.00021095,2]
[372557218,1752682275844,-1474.43,0.00021095,2]
[372557219,1752682275854,-245.41930482,0.00021095,2]
[372557220,1752682275864,-828.54,0.00021095,2]
[372557221,1752682275874,-460.0,0.00021095,2]
[372557222,1752682275884,-460.0,0.00021095,2]
[372557223,1752682275894,-460.0,0.00021095,2]
[372557224,1752682275903,-460.0,0.00021095,2]
[372557225,1752682275913,-507.41,0.00021095,2]
[372557226,1752682275923,-632.11,0.00021095,2]
[372557227,1752682275933,-460.0,0.00021095,2]
[372557228,1752682275943,-460.0,0.00021095,2]
[372557229,1752682275952,-460.0,0.00021095,2]
[372557230,1752682275962,-151.05134128,0.00021095,2]
[372557231,1752682275972,-1356.45,0.00021095,2]
[372557232,1752682275982,-460.0,0.00021095,2]
[372557233,1752682275991,-460.0,0.00021095,2]
[372557234,1752682276002,-761.93,0.00021095,2]
[372557235,1752682276012,-460.0,0.00021095,2]
[372557236,1752682276022,-460.0,0.00021095,2]
[372557237,1752682276033,-600.35,0.00021095,2]
[372557238,1752682276042,-949.14,0.00021095,2]
[372557239,1752682276052,-624.22,0.00021095,2]
[372557240,1752682276062,-1370.55,0.00021095,2]
[372557241,1752682276072,-1009.28,0.00021095,2]
[372557242,1752682276081,-460.0,0.00021095,2]
[372557243,1752682276091,-509.49138637,0.00021095,2]
[372557244,1752682276101,-460.0,0.00021095,2]
[372557245,1752682276110,-664.71,0.00021095,2]
[372557246,1752682276119,-460.0,0.00021095,2]